[Event "Late-Titled-Tuesday-Blitz-June-18-2024"]
[Site "Chess.com"]
[Date "2024.06.18"]
[Round "6"]
[White "ahkashefi2800"]
[Black "XDPS"]
[Result "1-0"]
[WhiteElo "2630"]
[BlackElo "2868"]
[TimeControl "180+1"]
[EndTime "15:08:21 PDT"]
[Termination "ahkashefi2800 won by resignation"]

1. d4 {[%clk 0:02:20.5]} 1... d5 {[%clk 0:02:58.8]} 2. c4 {[%clk 0:02:14.8]}
2... e6 {[%clk 0:02:58.8]} 3. cxd5 {[%clk 0:02:15.3]} 3... exd5 {[%clk
0:02:58.6]} 4. Nc3 {[%clk 0:02:16.2]} 4... c6 {[%clk 0:02:58.3]} 5. Qc2 {[%clk
0:02:16.4]} 5... Bd6 {[%clk 0:02:56.8]} 6. Nf3 {[%clk 0:02:15.8]} 6... h6 {[%clk
0:02:51.7]} 7. Ne5 {[%clk 0:02:13.8]} 7... Nd7 {[%clk 0:02:46.4]} 8. Bf4 {[%clk
0:02:13.6]} 8... Qe7 {[%clk 0:02:46.8]} 9. Nd3 {[%clk 0:02:06.1]} 9... Ngf6
{[%clk 0:02:42.4]} 10. e3 {[%clk 0:02:05.1]} 10... O-O {[%clk 0:02:41]} 11. Be2
{[%clk 0:02:04.8]} 11... Nb6 {[%clk 0:02:41.1]} 12. Bxd6 {[%clk 0:02:01.1]}
12... Qxd6 {[%clk 0:02:41.3]} 13. Ne5 {[%clk 0:02:02]} 13... Nbd7 {[%clk
0:02:38.9]} 14. f4 {[%clk 0:02:01.2]} 14... c5 {[%clk 0:02:37.4]} 15. O-O {[%clk
0:01:59.3]} 15... cxd4 {[%clk 0:02:33.2]} 16. exd4 {[%clk 0:01:59]} 16... Qb6
{[%clk 0:02:32.7]} 17. Rad1 {[%clk 0:01:59.1]} 17... Re8 {[%clk 0:02:27.5]} 18.
h3 {[%clk 0:01:56.3]} 18... Nxe5 {[%clk 0:02:25.5]} 19. fxe5 {[%clk 0:01:52.4]}
19... Rxe5 {[%clk 0:02:25.8]} 20. Na4 {[%clk 0:01:51.7]} 20... Rxe2 {[%clk
0:02:25.5]} 21. Qxe2 {[%clk 0:01:34.8]} 21... Qd8 {[%clk 0:02:26]} 22. Rde1
{[%clk 0:01:30.6]} 22... Ne4 {[%clk 0:01:59.4]} 23. Nc3 {[%clk 0:01:25.1]} 23...
f5 {[%clk 0:01:59.3]} 24. Qb5 {[%clk 0:01:00.7]} 24... Be6 {[%clk 0:01:45.6]}
25. Qxb7 {[%clk 0:00:59.2]} 25... Rb8 {[%clk 0:01:46]} 26. Qa6 {[%clk 0:00:41]}
26... Qf6 {[%clk 0:01:32.9]} 27. Nxe4 {[%clk 0:00:37.1]} 27... dxe4 {[%clk
0:01:33.5]} 28. Rxe4 {[%clk 0:00:34.9]} 28... Rb6 {[%clk 0:01:28.3]} 29. Qxa7
{[%clk 0:00:29.7]} 29... Rxb2 {[%clk 0:01:28.6]} 30. Qa6 {[%clk 0:00:20.7]}
30... Rxg2+ {[%clk 0:01:09.2]} 31. Kxg2 {[%clk 0:00:18.3]} 31... Qg6+ {[%clk
0:01:09.7]} 32. Kh2 {[%clk 0:00:09.7]} 32... fxe4 {[%clk 0:01:09.7]} 33. d5
{[%clk 0:00:09.3]} 33... Bf7 {[%clk 0:00:52.8]} 34. Qxg6 {[%clk 0:00:09.6]}
34... Bxg6 {[%clk 0:00:53.7]} 35. a4 {[%clk 0:00:09.9]} 35... e3 {[%clk
0:00:53.9]} 36. Re1 {[%clk 0:00:09.8]} 1-0

[Event "Late-Titled-Tuesday-Blitz-June-18-2024"]
[Site "Chess.com"]
[Date "2024.06.18"]
[Round "6"]
[White "Jahonas"]
[Black "teresin05"]
[Result "1-0"]
[WhiteElo "2393"]
[BlackElo "2265"]
[TimeControl "180+1"]
[EndTime "15:08:25 PDT"]
[Termination "Jahonas won by checkmate"]

1. d4 {[%clk 0:03:00.9]} 1... d5 {[%clk 0:02:59.4]} 2. Nf3 {[%clk 0:02:59.9]}
2... Nf6 {[%clk 0:02:59.2]} 3. Bf4 {[%clk 0:02:59.6]} 3... c5 {[%clk 0:02:58.6]}
4. e3 {[%clk 0:02:59.3]} 4... Nc6 {[%clk 0:02:58.6]} 5. c3 {[%clk 0:02:58.2]}
5... Qb6 {[%clk 0:02:50.4]} 6. Qb3 {[%clk 0:02:56.9]} 6... c4 {[%clk 0:02:49.4]}
7. Qc2 {[%clk 0:02:56.5]} 7... Bf5 {[%clk 0:02:48.8]} 8. Qc1 {[%clk 0:02:56.7]}
8... e6 {[%clk 0:02:41.1]} 9. Be2 {[%clk 0:02:56.2]} 9... Be7 {[%clk 0:02:23.3]}
10. O-O {[%clk 0:02:54.9]} 10... O-O {[%clk 0:02:19.5]} 11. Bd1 {[%clk
0:02:52.7]} 11... Qd8 {[%clk 0:02:02.5]} 12. Bc2 {[%clk 0:02:51]} 12... Bxc2
{[%clk 0:02:00.2]} 13. Qxc2 {[%clk 0:02:49.3]} 13... b5 {[%clk 0:02:00.9]} 14.
b3 {[%clk 0:02:43]} 14... Ne4 {[%clk 0:01:40.3]} 15. Nbd2 {[%clk 0:02:40.2]}
15... f5 {[%clk 0:01:28.4]} 16. Ne5 {[%clk 0:02:30.9]} 16... Nxe5 {[%clk
0:01:24.5]} 17. Bxe5 {[%clk 0:02:30.6]} 17... Qb6 {[%clk 0:01:04]} 18. Nxe4
{[%clk 0:02:28.6]} 18... fxe4 {[%clk 0:01:02.3]} 19. bxc4 {[%clk 0:02:25.8]}
19... bxc4 {[%clk 0:00:57.8]} 20. Rab1 {[%clk 0:02:25.1]} 20... Qc6 {[%clk
0:00:54.3]} 21. a4 {[%clk 0:02:17.9]} 21... Rf7 {[%clk 0:00:29.5]} 22. Rb5
{[%clk 0:02:00.8]} 22... a6 {[%clk 0:00:23.8]} 23. Rb2 {[%clk 0:01:59.3]} 23...
Ba3 {[%clk 0:00:21.4]} 24. Rbb1 {[%clk 0:01:26.1]} 24... Bf8 {[%clk 0:00:18.4]}
25. a5 {[%clk 0:01:20.1]} 25... Rb7 {[%clk 0:00:18.3]} 26. Rxb7 {[%clk
0:01:18.1]} 26... Qxb7 {[%clk 0:00:19.2]} 27. Rb1 {[%clk 0:01:18]} 27... Qd7
{[%clk 0:00:14.4]} 28. Rb6 {[%clk 0:01:13.4]} 28... Be7 {[%clk 0:00:12.4]} 29.
h3 {[%clk 0:00:59.7]} 29... Bd8 {[%clk 0:00:12.1]} 30. Rd6 {[%clk 0:00:54.1]}
30... Qe8 {[%clk 0:00:12.2]} 31. Qe2 {[%clk 0:00:28.1]} 31... Bc7 {[%clk
0:00:12.1]} 32. Qg4 {[%clk 0:00:27.2]} 32... Bxd6 {[%clk 0:00:12.1]} 33. Qxg7#
{[%clk 0:00:26.8]} 1-0

[Event "Late-Titled-Tuesday-Blitz-June-18-2024"]
[Site "Chess.com"]
[Date "2024.06.18"]
[Round "6"]
[White "KebabJangles"]
[Black "Heliosis11"]
[Result "1/2-1/2"]
[WhiteElo "2288"]
[BlackElo "2426"]
[TimeControl "180+1"]
[EndTime "15:08:30 PDT"]
[Termination "Game drawn by repetition"]

1. d4 {[%clk 0:03:00.9]} 1... Nf6 {[%clk 0:02:41.3]} 2. c4 {[%clk 0:02:50.4]}
2... e6 {[%clk 0:02:37.2]} 3. g3 {[%clk 0:02:48.7]} 3... Bb4+ {[%clk 0:02:36.4]}
4. Bd2 {[%clk 0:02:48.1]} 4... Be7 {[%clk 0:02:36.8]} 5. Bg2 {[%clk 0:02:47.1]}
5... d5 {[%clk 0:02:37.4]} 6. Qc2 {[%clk 0:02:47]} 6... O-O {[%clk 0:02:36]} 7.
Nf3 {[%clk 0:02:46.8]} 7... c6 {[%clk 0:02:36.4]} 8. O-O {[%clk 0:02:46.5]} 8...
Nbd7 {[%clk 0:02:37.1]} 9. Bf4 {[%clk 0:02:46.6]} 9... b6 {[%clk 0:02:37.5]} 10.
Nbd2 {[%clk 0:02:46.5]} 10... Nh5 {[%clk 0:02:33.2]} 11. Be5 {[%clk 0:02:44.2]}
11... Nxe5 {[%clk 0:02:28.5]} 12. Nxe5 {[%clk 0:02:43.9]} 12... Bb7 {[%clk
0:02:26.3]} 13. e4 {[%clk 0:02:40.9]} 13... Nf6 {[%clk 0:02:24.5]} 14. Rad1
{[%clk 0:02:31.6]} 14... Rc8 {[%clk 0:02:23.9]} 15. exd5 {[%clk 0:02:07.3]}
15... cxd5 {[%clk 0:02:24.8]} 16. b3 {[%clk 0:02:07.7]} 16... Qc7 {[%clk
0:02:18.8]} 17. Qb2 {[%clk 0:02:06.1]} 17... dxc4 {[%clk 0:02:18.5]} 18. Ndxc4
{[%clk 0:02:04.6]} 18... Bxg2 {[%clk 0:02:19]} 19. Kxg2 {[%clk 0:02:05.5]} 19...
Qb7+ {[%clk 0:02:19.5]} 20. Kg1 {[%clk 0:02:05.2]} 20... Nd5 {[%clk 0:02:19.8]}
21. Ne3 {[%clk 0:02:04.8]} 21... Nc3 {[%clk 0:02:18.5]} 22. Rc1 {[%clk
0:02:03.4]} 22... Ne4 {[%clk 0:02:16.5]} 23. f3 {[%clk 0:01:54.9]} 23... Nf6
{[%clk 0:02:08.1]} 24. Kf2 {[%clk 0:01:51]} 24... Nd5 {[%clk 0:02:08.2]} 25.
Nxd5 {[%clk 0:01:49.8]} 25... Qxd5 {[%clk 0:02:09.1]} 26. Rfd1 {[%clk
0:01:49.4]} 26... f6 {[%clk 0:02:09]} 27. Nc4 {[%clk 0:01:48.1]} 27... Rfd8
{[%clk 0:01:59.7]} 28. Ne3 {[%clk 0:01:46.9]} 28... Qh5 {[%clk 0:02:00]} 29. Kg2
{[%clk 0:01:43.3]} 29... Qh6 {[%clk 0:01:52.4]} 30. Qf2 {[%clk 0:01:34.1]} 30...
Ba3 {[%clk 0:01:42.9]} 31. Rxc8 {[%clk 0:01:32.2]} 31... Rxc8 {[%clk 0:01:43.8]}
32. d5 {[%clk 0:01:32.5]} 32... Bc5 {[%clk 0:01:42.5]} 33. Ng4 {[%clk
0:01:11.3]} 33... Bxf2 {[%clk 0:01:33.8]} 34. Nxh6+ {[%clk 0:01:11.1]} 34...
gxh6 {[%clk 0:01:34.7]} 35. Kxf2 {[%clk 0:01:11.9]} 35... Rc2+ {[%clk
0:01:34.5]} 36. Ke3 {[%clk 0:01:11.4]} 36... exd5 {[%clk 0:01:31.1]} 37. Rd2
{[%clk 0:01:09.6]} 37... Rxd2 {[%clk 0:01:21.4]} 38. Kxd2 {[%clk 0:01:08.5]}
38... h5 {[%clk 0:01:18]} 39. h4 {[%clk 0:01:07.6]} 39... Kf7 {[%clk 0:01:14.7]}
40. Kd3 {[%clk 0:01:07.7]} 40... Ke6 {[%clk 0:01:14.6]} 41. Kd4 {[%clk
0:01:08.2]} 41... Kd6 {[%clk 0:01:14.6]} 42. b4 {[%clk 0:01:08.1]} 42... b5
{[%clk 0:01:08.7]} 43. a3 {[%clk 0:01:08]} 43... a6 {[%clk 0:01:08.1]} 44. f4
{[%clk 0:01:04.3]} 44... Ke6 {[%clk 0:01:07.6]} 45. Kc5 {[%clk 0:01:04.1]} 45...
h6 {[%clk 0:01:02.6]} 46. Kd4 {[%clk 0:00:59.9]} 46... Kd6 {[%clk 0:01:02.1]}
47. f5 {[%clk 0:00:46.5]} 47... Kc6 {[%clk 0:01:01.6]} 48. Kd3 {[%clk
0:00:45.7]} 48... Kd7 {[%clk 0:01:01.9]} 49. Ke3 {[%clk 0:00:44.4]} 49... Kc7
{[%clk 0:01:02.4]} 50. Kd3 {[%clk 0:00:43.1]} 50... Kd7 {[%clk 0:01:02.8]} 51.
Kc3 {[%clk 0:00:43.1]} 51... Ke7 {[%clk 0:00:45.5]} 52. Kd3 {[%clk 0:00:42.9]}
52... Kd6 {[%clk 0:00:46.4]} 53. Kd4 {[%clk 0:00:43.1]} 53... Kc6 {[%clk
0:00:47]} 54. Ke3 {[%clk 0:00:42.3]} 54... Kc7 {[%clk 0:00:46.3]} 55. Kd3 {[%clk
0:00:41.6]} 55... Kb6 {[%clk 0:00:43.8]} 56. Kd4 {[%clk 0:00:41.3]} 56... Kc6
{[%clk 0:00:44.1]} 1/2-1/2

[Event "Late-Titled-Tuesday-Blitz-June-18-2024"]
[Site "Chess.com"]
[Date "2024.06.18"]
[Round "6"]
[White "JG1me"]
[Black "InadaC"]
[Result "1-0"]
[WhiteElo "2550"]
[BlackElo "2280"]
[TimeControl "180+1"]
[EndTime "15:08:38 PDT"]
[Termination "JG1me won by resignation"]

1. e4 {[%clk 0:03:00.9]} 1... e6 {[%clk 0:02:58]} 2. Qe2 {[%clk 0:03:00.7]} 2...
c5 {[%clk 0:02:57.4]} 3. g3 {[%clk 0:03:00.8]} 3... Nc6 {[%clk 0:02:57.2]} 4. c3
{[%clk 0:03:01]} 4... Nge7 {[%clk 0:02:56.2]} 5. Bg2 {[%clk 0:03:01.3]} 5... d5
{[%clk 0:02:55]} 6. d3 {[%clk 0:02:56]} 6... g6 {[%clk 0:02:50.6]} 7. Nf3 {[%clk
0:02:55.9]} 7... Bg7 {[%clk 0:02:50.2]} 8. O-O {[%clk 0:02:56.4]} 8... O-O
{[%clk 0:02:50]} 9. Bf4 {[%clk 0:02:56.8]} 9... Qb6 {[%clk 0:02:48.8]} 10. h4
{[%clk 0:02:46.6]} 10... d4 {[%clk 0:02:41.4]} 11. c4 {[%clk 0:02:41.7]} 11...
e5 {[%clk 0:02:37.1]} 12. Bc1 {[%clk 0:02:42.3]} 12... f5 {[%clk 0:02:35.2]} 13.
exf5 {[%clk 0:02:04.8]} 13... Bxf5 {[%clk 0:02:30.7]} 14. Ng5 {[%clk 0:02:02.5]}
14... Nb4 {[%clk 0:02:24.1]} 15. Ne4 {[%clk 0:01:58.7]} 15... Nec6 {[%clk
0:02:18.3]} 16. a3 {[%clk 0:01:52.2]} 16... Na6 {[%clk 0:02:15.8]} 17. Nbd2
{[%clk 0:01:52.4]} 17... Rad8 {[%clk 0:02:13.1]} 18. Ng5 {[%clk 0:01:48.5]}
18... Rfe8 {[%clk 0:02:08.6]} 19. Bd5+ {[%clk 0:01:45.8]} 19... Rxd5 {[%clk
0:02:04.3]} 20. cxd5 {[%clk 0:01:46.7]} 20... Ne7 {[%clk 0:02:02.7]} 21. Nc4
{[%clk 0:01:47]} 21... Qf6 {[%clk 0:01:54.1]} 22. Ne4 {[%clk 0:01:41.9]} 22...
Qf8 {[%clk 0:01:44.7]} 23. Ncd6 {[%clk 0:01:14.3]} 23... Rd8 {[%clk 0:01:35.9]}
24. Nxf5 {[%clk 0:01:14.9]} 24... Nxf5 {[%clk 0:01:32.6]} 25. Qc2 {[%clk
0:01:07.5]} 25... Rxd5 {[%clk 0:01:18.2]} 26. Qb3 {[%clk 0:01:05]} 26... Nc7
{[%clk 0:01:08.4]} 27. Qxb7 {[%clk 0:00:50.5]} 27... Ne7 {[%clk 0:01:07.4]} 28.
Qxc7 {[%clk 0:00:48.4]} 28... Nf5 {[%clk 0:00:58.2]} 29. Qc6 {[%clk 0:00:45.3]}
29... Rd8 {[%clk 0:00:57.6]} 30. Bg5 {[%clk 0:00:45.3]} 30... Rc8 {[%clk
0:00:56.7]} 31. Qe6+ {[%clk 0:00:45.5]} 31... Kh8 {[%clk 0:00:55.8]} 32. Bf6
{[%clk 0:00:46]} 32... Re8 {[%clk 0:00:47.4]} 33. Bxg7+ {[%clk 0:00:45]} 33...
Kxg7 {[%clk 0:00:47.8]} 34. Qd7+ {[%clk 0:00:45.1]} 34... Re7 {[%clk 0:00:47.5]}
35. Qd5 {[%clk 0:00:39.8]} 35... Qc8 {[%clk 0:00:41.2]} 36. Qxc5 {[%clk
0:00:38.2]} 36... Qe8 {[%clk 0:00:38.9]} 37. Nd6 {[%clk 0:00:36.5]} 37... Nxd6
{[%clk 0:00:33.9]} 38. Qxd6 {[%clk 0:00:37.4]} 38... Re6 {[%clk 0:00:34.5]} 39.
Qd5 {[%clk 0:00:36.6]} 39... e4 {[%clk 0:00:32]} 40. Qxd4+ {[%clk 0:00:36.2]}
40... Kh6 {[%clk 0:00:31.9]} 41. dxe4 {[%clk 0:00:36.5]} 41... Rxe4 {[%clk
0:00:32.4]} 42. Qd2+ {[%clk 0:00:37.1]} 42... Kg7 {[%clk 0:00:32.1]} 43. Rac1
{[%clk 0:00:37.7]} 43... Qa4 {[%clk 0:00:28.5]} 44. Rc7+ {[%clk 0:00:37.4]}
44... Kf8 {[%clk 0:00:26]} 45. Qd8+ {[%clk 0:00:36.9]} 45... Re8 {[%clk
0:00:23.3]} 46. Qf6+ {[%clk 0:00:37.4]} 46... Kg8 {[%clk 0:00:23.3]} 47. Rg7+
{[%clk 0:00:36.9]} 47... Kh8 {[%clk 0:00:22.8]} 48. Re7+ {[%clk 0:00:36.6]} 1-0

[Event "Late-Titled-Tuesday-Blitz-June-18-2024"]
[Site "Chess.com"]
[Date "2024.06.18"]
[Round "6"]
[White "tactic"]
[Black "Pelusiansky"]
[Result "1-0"]
[WhiteElo "2751"]
[BlackElo "2566"]
[TimeControl "180+1"]
[EndTime "15:08:39 PDT"]
[Termination "tactic won by resignation"]

1. e4 {[%clk 0:03:00.9]} 1... e5 {[%clk 0:03:00.1]} 2. Nf3 {[%clk 0:03:00.9]}
2... Nf6 {[%clk 0:03:00.2]} 3. d4 {[%clk 0:03:00.9]} 3... d5 {[%clk 0:02:59.9]}
4. Nxe5 {[%clk 0:02:54.7]} 4... Nxe4 {[%clk 0:02:56.9]} 5. Bd3 {[%clk
0:02:54.9]} 5... Be7 {[%clk 0:02:48.7]} 6. O-O {[%clk 0:02:52.4]} 6... O-O
{[%clk 0:02:48.6]} 7. c4 {[%clk 0:02:52.5]} 7... c6 {[%clk 0:02:42.6]} 8. Nc3
{[%clk 0:02:52.4]} 8... Nf6 {[%clk 0:02:33.3]} 9. cxd5 {[%clk 0:02:41.9]} 9...
cxd5 {[%clk 0:02:28.7]} 10. Qb3 {[%clk 0:02:31.8]} 10... Nc6 {[%clk 0:02:22.8]}
11. Be3 {[%clk 0:02:20.3]} 11... Na5 {[%clk 0:02:16.2]} 12. Qc2 {[%clk 0:02:17]}
12... Be6 {[%clk 0:02:14.3]} 13. Rac1 {[%clk 0:02:04.3]} 13... Rc8 {[%clk
0:02:10.1]} 14. Bf5 {[%clk 0:02:04.5]} 14... Nc4 {[%clk 0:01:59.9]} 15. Bxe6
{[%clk 0:01:55.5]} 15... fxe6 {[%clk 0:01:57.6]} 16. Nxc4 {[%clk 0:01:38.3]}
16... Rxc4 {[%clk 0:01:57]} 17. Qb3 {[%clk 0:01:38.3]} 17... Qd7 {[%clk
0:01:51.8]} 18. Ne2 {[%clk 0:01:33.1]} 18... Rfc8 {[%clk 0:01:50.1]} 19. Rc3
{[%clk 0:01:31.8]} 19... b5 {[%clk 0:01:44.9]} 20. Nf4 {[%clk 0:01:18.4]} 20...
b4 {[%clk 0:01:30.4]} 21. Rcc1 {[%clk 0:01:14.3]} 21... Bd6 {[%clk 0:01:19.8]}
22. Nd3 {[%clk 0:01:13.9]} 22... a5 {[%clk 0:01:14.6]} 23. Nc5 {[%clk 0:00:48]}
23... Bxc5 {[%clk 0:01:08.8]} 24. dxc5 {[%clk 0:00:48.7]} 24... Qb5 {[%clk
0:00:47.2]} 25. Qd3 {[%clk 0:00:43.7]} 25... Ne4 {[%clk 0:00:41.5]} 26. b3
{[%clk 0:00:40]} 26... Nc3 {[%clk 0:00:22.6]} 27. Rxc3 {[%clk 0:00:35.2]} 27...
bxc3 {[%clk 0:00:20.4]} 28. bxc4 {[%clk 0:00:35.9]} 28... Qa6 {[%clk 0:00:11.8]}
29. Qxc3 {[%clk 0:00:34.8]} 29... a4 {[%clk 0:00:12.1]} 30. cxd5 {[%clk
0:00:30.9]} 30... exd5 {[%clk 0:00:11.6]} 31. Qe5 {[%clk 0:00:31.6]} 31... Qc6
{[%clk 0:00:09.4]} 32. Bd4 {[%clk 0:00:29.9]} 32... Qd7 {[%clk 0:00:09.9]} 33.
Re1 {[%clk 0:00:27.9]} 33... h6 {[%clk 0:00:09.8]} 34. h3 {[%clk 0:00:25.9]}
34... Rf8 {[%clk 0:00:08.8]} 35. Qe7 {[%clk 0:00:23.6]} 1-0

[Event "Late-Titled-Tuesday-Blitz-June-18-2024"]
[Site "Chess.com"]
[Date "2024.06.18"]
[Round "6"]
[White "Dolphin_2010"]
[Black "HalfIsCrayfish"]
[Result "1-0"]
[WhiteElo "2796"]
[BlackElo "2569"]
[TimeControl "180+1"]
[EndTime "15:08:40 PDT"]
[Termination "Dolphin_2010 won by resignation"]

1. e4 {[%clk 0:02:59.1]} 1... c5 {[%clk 0:02:58.9]} 2. Be2 {[%clk 0:02:59.3]}
2... Nc6 {[%clk 0:02:58.4]} 3. f4 {[%clk 0:02:58.6]} 3... g6 {[%clk 0:02:58.4]}
4. Nf3 {[%clk 0:02:55.8]} 4... Bg7 {[%clk 0:02:58.7]} 5. O-O {[%clk 0:02:56]}
5... d6 {[%clk 0:02:57.8]} 6. c3 {[%clk 0:02:55.1]} 6... Nf6 {[%clk 0:02:55.9]}
7. d3 {[%clk 0:02:55.4]} 7... O-O {[%clk 0:02:55.7]} 8. Kh1 {[%clk 0:02:54.6]}
8... Rb8 {[%clk 0:02:50.4]} 9. Be3 {[%clk 0:02:54.5]} 9... b5 {[%clk 0:02:50.1]}
10. a3 {[%clk 0:02:54.8]} 10... a5 {[%clk 0:02:49.4]} 11. Nbd2 {[%clk
0:02:54.7]} 11... b4 {[%clk 0:02:44.6]} 12. d4 {[%clk 0:02:53.2]} 12... bxc3
{[%clk 0:02:37.9]} 13. bxc3 {[%clk 0:02:52.4]} 13... cxd4 {[%clk 0:02:31.3]} 14.
cxd4 {[%clk 0:02:53.3]} 14... d5 {[%clk 0:02:17.1]} 15. e5 {[%clk 0:02:48.8]}
15... Ne4 {[%clk 0:02:17.5]} 16. Qc2 {[%clk 0:02:34.7]} 16... Nxd2 {[%clk
0:01:29.4]} 17. Nxd2 {[%clk 0:02:35.6]} 17... Bd7 {[%clk 0:01:29.2]} 18. Nb3
{[%clk 0:02:35.1]} 18... a4 {[%clk 0:01:19.3]} 19. Nc5 {[%clk 0:02:33.4]} 19...
Na5 {[%clk 0:01:19.7]} 20. Qc3 {[%clk 0:02:19.1]} 20... Nb3 {[%clk 0:01:16.9]}
21. Rab1 {[%clk 0:02:13.8]} 21... Bf5 {[%clk 0:01:14.8]} 22. Bd3 {[%clk
0:01:40.6]} 22... Nxc5 {[%clk 0:00:57.2]} 23. dxc5 {[%clk 0:01:37.4]} 23... Bxd3
{[%clk 0:00:49.5]} 24. Qxd3 {[%clk 0:01:37.7]} 24... Qd7 {[%clk 0:00:46.5]} 25.
Bd4 {[%clk 0:01:33.8]} 25... e6 {[%clk 0:00:44]} 26. Qa6 {[%clk 0:01:19.3]}
26... Rxb1 {[%clk 0:00:28.5]} 27. Rxb1 {[%clk 0:01:20.2]} 27... Rc8 {[%clk
0:00:28.7]} 28. Rb7 {[%clk 0:01:15.4]} 28... Qc6 {[%clk 0:00:26.7]} 29. Rb6
{[%clk 0:01:09.1]} 29... Qc7 {[%clk 0:00:23.3]} 30. Qxa4 {[%clk 0:01:04.7]}
30... Bf8 {[%clk 0:00:21]} 31. c6 {[%clk 0:01:05.2]} 31... h5 {[%clk 0:00:15.3]}
32. Qa6 {[%clk 0:01:03.7]} 32... Bh6 {[%clk 0:00:12.3]} 33. g3 {[%clk 0:00:57]}
33... g5 {[%clk 0:00:12.5]} 34. fxg5 {[%clk 0:00:52.9]} 34... Bxg5 {[%clk
0:00:13.4]} 35. a4 {[%clk 0:00:53.1]} 35... Bd8 {[%clk 0:00:12]} 36. a5 {[%clk
0:00:49.8]} 36... h4 {[%clk 0:00:08.6]} 37. Qb7 {[%clk 0:00:44.3]} 37... hxg3
{[%clk 0:00:05.9]} 38. hxg3 {[%clk 0:00:40.7]} 38... Qe7 {[%clk 0:00:03.9]} 39.
Qxc8 {[%clk 0:00:40.1]} 39... Qa3 {[%clk 0:00:03.2]} 40. Qxd8+ {[%clk
0:00:40.1]} 40... Kh7 {[%clk 0:00:03.6]} 41. Qh4+ {[%clk 0:00:40.1]} 1-0

[Event "Late-Titled-Tuesday-Blitz-June-18-2024"]
[Site "Chess.com"]
[Date "2024.06.18"]
[Round "6"]
[White "evgchess5"]
[Black "GasconJR"]
[Result "1-0"]
[WhiteElo "2918"]
[BlackElo "2653"]
[TimeControl "180+1"]
[EndTime "15:08:41 PDT"]
[Termination "evgchess5 won by resignation"]

1. e4 {[%clk 0:02:33.1]} 1... e5 {[%clk 0:02:59.2]} 2. Nf3 {[%clk 0:02:32.1]}
2... Nc6 {[%clk 0:02:59.8]} 3. Bc4 {[%clk 0:02:32.1]} 3... Nf6 {[%clk
0:02:58.9]} 4. d3 {[%clk 0:02:32.2]} 4... Bc5 {[%clk 0:02:43.4]} 5. c3 {[%clk
0:02:32.3]} 5... d6 {[%clk 0:02:42.7]} 6. O-O {[%clk 0:02:32]} 6... a6 {[%clk
0:02:43.3]} 7. Bb3 {[%clk 0:02:32]} 7... Ba7 {[%clk 0:02:43.7]} 8. Be3 {[%clk
0:02:30.3]} 8... Bxe3 {[%clk 0:02:31]} 9. fxe3 {[%clk 0:02:30]} 9... O-O {[%clk
0:02:31.2]} 10. Nbd2 {[%clk 0:02:30]} 10... Be6 {[%clk 0:02:31.7]} 11. Bc2
{[%clk 0:02:28.8]} 11... h6 {[%clk 0:02:29.5]} 12. h3 {[%clk 0:02:26.7]} 12...
Ne7 {[%clk 0:02:27]} 13. Nh4 {[%clk 0:02:26.3]} 13... Nh7 {[%clk 0:02:26.7]} 14.
d4 {[%clk 0:02:22.8]} 14... c5 {[%clk 0:02:04]} 15. Kh2 {[%clk 0:01:58.2]} 15...
Rc8 {[%clk 0:01:59.5]} 16. Bd3 {[%clk 0:01:41.3]} 16... b5 {[%clk 0:01:59.1]}
17. Qh5 {[%clk 0:01:37.5]} 17... f6 {[%clk 0:01:40.5]} 18. Rf2 {[%clk
0:01:33.6]} 18... Qe8 {[%clk 0:01:39.3]} 19. Qe2 {[%clk 0:01:29.9]} 19... Ng5
{[%clk 0:01:36.3]} 20. a3 {[%clk 0:01:27]} 20... Kh8 {[%clk 0:01:12.6]} 21. Raf1
{[%clk 0:01:26.3]} 21... Qd7 {[%clk 0:01:10.6]} 22. Nf5 {[%clk 0:01:20.8]} 22...
Bxf5 {[%clk 0:01:04.7]} 23. exf5 {[%clk 0:01:20.7]} 23... exd4 {[%clk
0:01:00.3]} 24. exd4 {[%clk 0:01:18.5]} 24... cxd4 {[%clk 0:01:00.9]} 25. cxd4
{[%clk 0:01:18]} 25... Nc6 {[%clk 0:01:01.6]} 26. Qg4 {[%clk 0:01:16.7]} 26...
Qa7 {[%clk 0:00:51.5]} 27. h4 {[%clk 0:01:12.6]} 27... Nf7 {[%clk 0:00:50.6]}
28. Nf3 {[%clk 0:01:09.9]} 28... Rfe8 {[%clk 0:00:45.4]} 29. Rc2 {[%clk
0:00:51.7]} 29... d5 {[%clk 0:00:32.1]} 30. Rfc1 {[%clk 0:00:48.7]} 30... Ne7
{[%clk 0:00:14.6]} 31. Qf4 {[%clk 0:00:42.8]} 31... Qb8 {[%clk 0:00:08]} 32.
Qxb8 {[%clk 0:00:41]} 32... Rxb8 {[%clk 0:00:08.2]} 33. g4 {[%clk 0:00:37.6]}
33... b4 {[%clk 0:00:08.2]} 34. a4 {[%clk 0:00:34.9]} 34... b3 {[%clk 0:00:07]}
35. Rc7 {[%clk 0:00:34.4]} 35... Rb4 {[%clk 0:00:06.7]} 36. Bxa6 {[%clk
0:00:33.4]} 36... h5 {[%clk 0:00:06.5]} 37. Bb5 {[%clk 0:00:32.4]} 1-0